bitfinex/quotes_ETHUSD_20250605
["timestamp","ask_amount","ask_price","bid_price","bid_amount"]
[1749082328260,0.02,2605.9,2605.8,39.845922]
[1749082328462,0.02,2605.9,2605.8,32.142]
[1749082329196,0.02,2605.9,2605.8,34.688]
[1749082329495,0.02,2605.9,2605.8,34.452448]
[1749082330002,0.02,2605.9,2605.8,32.142]
[1749082330704,0.02,2605.9,2605.8,38.417128]
[1749082331810,0.02,2605.9,2605.8,36.340128]
[1749082336318,0.02,2605.9,2605.8,35.99238]
[1749082340118,0.02,2605.9,2605.8,35.99338]
[1749082340633,0.02,2605.9,2605.8,19.99138]
[1749082341118,0.02,2605.9,2605.5,0.76760545]
[1749082341119,0.02,2605.9,2605.3,30.76763874]
[1749082341344,0.02,2605.9,2605.3,30.0]
[1749082341642,0.02,2605.9,2605.6,17.468851]
[1749082342342,0.02,2605.9,2605.8,15.150214]
[1749082342643,0.02,2605.9,2605.8,29.251214]
[1749082344236,0.02,2605.9,2605.8,27.334122]
[1749082344443,0.02,2605.9,2605.8,22.245]
[1749082344614,0.02,2605.9,2605.8,18.738]
[1749082344977,0.02,2605.9,2605.8,22.244]
[1749082345320,0.02,2605.9,2605.8,32.134]
[1749082347860,0.02,2605.9,2605.8,47.676922]
[1749082348630,0.02,2605.9,2605.8,41.432922]
[1749082348843,0.02,2605.9,2605.8,47.677922]
[1749082350614,0.02,2605.9,2605.8,32.135]
[1749082355746,0.02,2605.9,2605.8,47.677922]
[1749082357859,0.02,2605.9,2605.8,25.89]
[1749082358058,0.02,2605.9,2605.8,32.135]
[1749082358863,1.66253288,2605.9,2605.8,9.89]
[1749082359026,2.21253288,2605.9,2605.8,16.135]
[1749082367669,0.02,2605.9,2605.8,16.135]
[1749082367832,0.02,2605.9,2605.8,28.132384]
[1749082368032,0.02,2605.9,2605.8,25.803692]
[1749082369285,0.02,2605.9,2605.8,20.221]
[1749082377381,0.02,2605.9,2605.8,16.135]
[1749082378446,0.02,2605.9,2605.8,32.922134]
[1749082379098,0.02,2605.9,2605.8,29.538922]
[1749082385172,0.02,2605.9,2605.8,33.66676943]
[1749082385387,0.00108608,2605.9,2605.8,33.66676943]
[1749082385702,0.00108608,2605.9,2605.8,29.537922]
[1749082386381,0.00108608,2605.9,2605.8,30.30544061]
[1749082386786,0.00108608,2605.9,2605.8,29.537922]
[1749082387256,0.00108608,2605.9,2605.8,21.676922]
[1749082387460,0.00108608,2605.9,2605.8,29.537922]
[1749082391345,0.00108608,2605.9,2605.8,23.293922]
[1749082391462,0.00108608,2605.9,2605.8,20.618517]
[1749082391862,0.00108608,2605.9,2605.8,18.313712]
[1749082393091,0.00108608,2605.9,2605.8,19.08123061]
[1749082393600,0.00108608,2605.9,2605.8,18.313712]
[1749082395376,0.00108608,2605.9,2605.8,19.08123061]
[1749082396376,0.00108608,2605.9,2605.8,18.313712]
[1749082397180,6.214e-05,2605.9,2605.8,18.313712]
[1749082397890,6.214e-05,2605.9,2605.8,19.08123061]
[1749082398082,6.214e-05,2605.9,2605.8,18.313712]
[1749082398778,6.214e-05,2605.9,2605.8,19.08123061]
[1749082399590,6.214e-05,2605.9,2605.8,18.313712]
[1749082400813,6.214e-05,2605.9,2605.8,19.08123061]
[1749082404291,6.214e-05,2605.9,2605.8,18.313712]
[1749082404704,6.214e-05,2605.9,2605.8,9.888]
[1749082405015,6.214e-05,2605.9,2605.8,40.65551861]
[1749082405582,6.214e-05,2605.9,2605.8,28.870995]
[1749082405783,6.214e-05,2605.9,2605.8,35.113995]
[1749082406117,6.214e-05,2605.9,2605.8,28.870995]
[1749082406319,6.214e-05,2605.9,2605.8,35.112995]
[1749082407017,6.214e-05,2605.9,2605.8,30.434499]
[1749082407597,1.3254,2606.5,2605.9,13.751995]
[1749082407793,0.46867288,2606.4,2605.9,13.751995]
[1749082408103,1.2516,2606.3,2606.1,16.0]
[1749082410521,1.3508,2606.5,2606.1,16.0]
[1749082411223,1.3508,2606.5,2606.2,1.616]
[1749082413714,3.36132882,2606.4,2606.2,1.616]
[1749082413914,1.66771288,2606.3,2606.2,1.616]
[1749082414224,1.66771288,2606.3,2606.2,23.858]
[1749082416020,1.66771288,2606.3,2606.2,32.13]
[1749082418773,1.66771288,2606.3,2606.2,16.13]
[1749082427046,1.66771288,2606.3,2606.2,9.888]
[1749082428283,1.66771288,2606.3,2606.2,16.13]
[1749082428485,2.21771288,2606.3,2606.2,9.888]
[1749082428653,2.21771288,2606.3,2606.2,16.13]
[1749082428857,2.21771288,2606.3,2606.2,9.888]
[1749082429058,2.21771288,2606.3,2606.2,16.13]
[1749082429577,1.10790417,2606.2,2604.8,1.52430618]
[1749082429776,3.36132882,2605.2,2604.9,1.616]
[1749082429979,1.2662,2605.3,2604.2,0.3662888]
[1749082429980,1.2662,2605.3,2605.0,7.858]
[1749082430156,3.36132882,2605.0,2604.3,0.76795486]
[1749082430356,3.36132882,2605.0,2604.6,10.0]
[1749082430888,3.36132882,2605.2,2604.6,10.0]
[1749082431088,3.36132882,2605.2,2604.7,9.757852]
[1749082431289,3.36132882,2605.2,2604.5,15.229735]
[1749082432094,3.36132882,2605.2,2604.5,15.9976146]
[1749082432294,3.36132882,2605.4,2604.6,18.707431]
[1749082432594,3.36132882,2605.4,2604.7,30.0]
[1749082432771,3.36132882,2605.4,2604.7,24.794688]
[1749082433155,3.36132882,2605.4,2604.6,0.76785915]
[1749082433156,3.36132882,2605.4,2604.9,28.262529]
[1749082433385,3.36132882,2605.4,2605.0,1.616]
[1749082435067,1.3014,2606.1,2605.1,10.752686]
[1749082435265,1.3014,2605.7,2605.3,2.683159]
[1749082435472,1.3014,2605.7,2605.4,10.0]
[1749082435700,1.3014,2605.7,2605.5,6.243]
[1749082435894,1.3014,2605.7,2605.6,1.615]
[1749082437170,3.36132882,2605.9,2605.7,10.0]
[1749082437791,3.36132882,2605.9,2605.6,1.615]
[1749082438509,3.36132882,2605.9,2605.7,6.243]
[1749082443422,3.36132882,2605.9,2605.8,8.274]
[1749082445020,1.3386,2605.9,2605.8,14.516]
[1749082445182,1.79426288,2605.9,2605.8,14.516]
[1749082445805,1.00566288,2605.9,2605.8,8.274]
[1749082446006,3.91132882,2605.9,2605.8,14.516]
[1749082446196,5.13282882,2605.9,2605.8,14.516]
[1749082451364,5.13282882,2605.9,2605.8,8.274]
[1749082451657,5.13282882,2605.9,2605.8,14.516]
[1749082452721,5.13282882,2605.9,2605.8,8.274]
[1749082452934,6.02434458,2605.9,2605.8,9.889]
[1749082453443,6.02434458,2605.9,2605.8,16.131]
[1749082454320,6.02434458,2605.9,2605.8,8.274]
[1749082454521,6.02434458,2605.9,2605.8,16.131]
[1749082461250,6.02434458,2605.9,2605.8,8.274]
[1749082461435,6.02434458,2605.9,2605.8,16.132]
[1749082462075,0.55,2605.6,2604.2,11.81337]
[1749082462256,3.36132882,2604.5,2604.1,0.02]
[1749082462572,3.36132882,2604.5,2604.2,8.515437]
[1749082462870,3.36132882,2604.7,2604.2,8.515437]
[1749082463033,3.36132882,2604.7,2604.2,3.595303]
[1749082463227,3.36132882,2604.5,2604.1,0.02]
[1749082463430,3.36132882,2604.5,2604.2,6.242]
[1749082463855,3.36132882,2604.5,2604.1,0.02]
[1749082464057,3.36132882,2604.3,2604.1,0.02]
[1749082464273,3.36132882,2604.3,2604.2,6.242]
[1749082464469,3.36132882,2604.3,2604.1,0.02]
[1749082464629,3.36132882,2604.3,2604.2,6.242]
[1749082465067,3.36132882,2604.3,2604.1,0.02]
[1749082465239,3.36132882,2604.3,2604.2,9.891]
[1749082465470,3.36132882,2604.3,2604.2,16.134]
[1749082465860,3.36132882,2604.3,2604.2,9.891]
[1749082466059,3.36132882,2604.3,2604.2,16.134]
[1749082471507,3.36132882,2604.5,2604.2,16.134]
[1749082472105,3.36132882,2604.6,2604.4,10.0]
[1749082472670,3.36132882,2604.6,2604.3,2.653729]
[1749082472873,1.3016,2604.8,2604.2,16.134]
[1749082472874,3.36132882,2604.4,2604.2,16.134]
[1749082473930,3.36132882,2604.4,2604.2,9.891]
[1749082474076,3.36132882,2604.4,2604.3,6.243]
[1749082475216,3.36132882,2604.4,2604.2,9.891]
[1749082475429,3.36132882,2604.4,2604.3,6.243]
[1749082475933,3.36132882,2604.4,2604.2,9.891]
[1749082475934,0.55,2604.3,2604.2,9.891]
[1749082476229,0.55,2604.3,2604.2,16.134]
[1749082476588,0.55,2604.3,2604.2,9.891]
[1749082476787,0.55,2604.3,2604.2,16.134]
[1749082477108,1.8009,2604.2,2604.1,0.02]
[1749082477427,5.16222882,2604.2,2604.1,16.156]
[1749082482262,5.16222882,2604.2,2604.1,1.615]
[1749082483335,5.16222882,2604.2,2604.1,6.244]
[1749082485223,5.16222882,2604.2,2602.9,10.0]
[1749082485224,0.55,2604.1,2602.9,10.0]
[1749082485428,3.36132882,2603.7,2603.0,16.139]
[1749082485802,3.36132882,2603.7,2603.1,3.627955]
[1749082485998,3.36132882,2603.7,2603.3,10.0]
[1749082486223,3.36132882,2603.7,2603.4,10.0]
[1749082486443,3.36132882,2603.7,2603.2,11.753123]
[1749082486943,3.91132882,2603.9,2603.2,11.753123]
[1749082490043,3.91132882,2603.9,2603.3,22.600175]
[1749082490243,3.91132882,2603.9,2603.2,30.0]
[1749082490946,3.91132882,2603.9,2603.1,30.0]
[1749082491111,3.91132882,2603.9,2603.2,30.0]
[1749082493170,3.91132882,2603.9,2603.1,30.0]
[1749082493848,3.91132882,2603.9,2603.2,30.0]
[1749082494045,3.91132882,2603.9,2603.1,30.0]
[1749082494224,3.91132882,2603.9,2603.4,10.17264]
[1749082495814,3.91132882,2603.9,2603.4,6.57264]
[1749082496142,3.91132882,2603.9,2603.5,10.0]
[1749082496314,3.91132882,2603.9,2603.6,1.615]
[1749082498752,3.36132882,2603.9,2603.7,8.28]
[1749082499954,0.076,2604.1,2603.7,8.28]
[1749082500256,0.076,2604.1,2603.8,8.755737]
[1749082500452,0.076,2604.1,2603.9,10.0]
[1749082501013,0.076,2604.1,2603.7,8.28]
[1749082501217,0.076,2604.1,2604.0,33.836117]
[1749082501412,0.076,2604.1,2603.9,0.76807656]
[1749082501650,0.076,2604.1,2604.0,40.76804915]
[1749082501918,3.36132882,2605.0,2604.4,0.76791893]
[1749082502139,3.36132882,2605.0,2604.6,16.536286]
[1749082502453,3.36132882,2605.0,2604.6,13.157592]
[1749082502615,3.36132882,2605.0,2604.7,10.0]
[1749082502815,3.36132882,2605.0,2604.6,7.922784]
[1749082503012,3.36132882,2605.0,2604.7,10.0]
[1749082503748,3.36132882,2605.0,2604.6,8.210784]
[1749082503949,3.36132882,2605.0,2604.5,7.858]
[1749082505059,3.36132882,2605.0,2604.6,17.595655]
[1749082505260,3.36132882,2605.0,2604.7,10.0]
[1749082506032,3.36132882,2605.0,2604.5,7.858]
[1749082506233,3.36132882,2605.0,2604.7,10.0]
[1749082506434,3.36132882,2605.0,2604.6,11.483403]
[1749082506734,3.36132882,2605.0,2604.5,7.858]
[1749082506945,3.36132882,2605.0,2604.7,10.0]
[1749082507331,3.36132882,2605.0,2604.6,14.792775]
[1749082508069,3.36132882,2605.0,2604.6,13.268305]
[1749082508867,1.3233,2605.3,2604.7,0.76782935]
[1749082509193,3.36132882,2605.4,2604.7,0.76781433]
[1749082509329,3.36132882,2605.4,2604.8,29.285348]
[1749082509530,3.36132882,2605.4,2604.8,28.883194]
[1749082510065,3.36132882,2605.4,2604.8,16.143415]
[1749082510292,3.36132882,2605.4,2604.8,0.76781326]
[1749082510450,3.36132882,2605.4,2604.8,27.79178926]
[1749082511265,3.36132882,2605.6,2604.8,27.79178926]
[1749082512384,3.36132882,2605.4,2604.8,6.934305]
[1749082512892,3.36132882,2605.4,2604.8,6.258319]
[1749082513250,3.36132882,2605.4,2604.8,7.02613226]
[1749082513847,1.2792,2605.7,2604.8,7.02613226]
[1749082514089,3.36132882,2605.8,2604.8,7.42144281]
[1749082514408,3.36132882,2605.8,2604.8,7.02613226]
[1749082515363,3.36132882,2605.6,2604.8,0.76781326]
[1749082515546,3.36132882,2605.8,2604.8,30.76781326]
[1749082516574,1.3203,2605.9,2604.8,30.76781326]
[1749082516575,3.36132882,2605.6,2604.8,30.76781326]
[1749082517069,3.36132882,2605.6,2604.8,39.04381326]
[1749082517751,1.3176,2605.4,2604.8,25.02373426]
[1749082519291,1.3176,2605.4,2604.8,23.94267526]
[1749082519690,4.60582882,2605.6,2604.8,23.94267526]
[1749082521098,4.60582882,2605.6,2604.8,30.18167526]
[1749082522102,3.36132882,2605.2,2604.8,14.871597]
[1749082522270,3.36132882,2605.0,2604.8,9.89]
[1749082522476,3.36132882,2605.0,2604.8,16.129]
[1749082523775,0.55,2605.8,2604.8,25.121878]
[1749082523776,1.2115,2605.4,2604.8,25.121878]
[1749082524198,3.36132882,2605.1,2604.8,17.268878]
[1749082524501,1.3262,2605.0,2604.8,16.129]
[1749082525667,1.3262,2605.0,2604.8,9.89]
[1749082526014,1.2105,2605.3,2604.8,18.19362]
[1749082526515,4.57182882,2605.8,2604.8,18.19362]
[1749082526700,4.57182882,2605.8,2604.8,24.43262]
[1749082527010,4.57182882,2605.8,2604.8,25.20043326]
[1749082527379,0.00028862,2604.9,2604.8,25.20043326]
[1749082529842,0.00028862,2604.9,2604.8,25.19943326]
[1749082533347,0.00028862,2604.9,2604.8,7.08563569]
[1749082535325,0.00028862,2604.9,2604.8,16.97263569]
[1749082536266,0.00028862,2604.9,2604.8,17.37098376]
[1749082536939,0.00028862,2604.9,2604.8,16.97163569]
[1749082537341,3.36132882,2605.6,2604.8,16.97163569]
[1749082537652,0.45718288,2605.6,2605.3,8.339387]
[1749082537856,0.45718288,2605.6,2605.1,0.7677203]
[1749082537857,0.45718288,2605.6,2605.5,7.850222]
[1749082538429,0.45718288,2605.6,2605.4,1.612]
[1749082542223,1.3207,2605.5,2605.4,1.612]
[1749082542454,1.3207,2605.5,2605.4,7.849]
[1749082544075,1.3207,2605.5,2605.4,16.123]
[1749082544727,1.3207,2605.5,2605.4,9.886]
[1749082545026,1.3207,2605.5,2605.4,16.123]
[1749082545225,1.78890288,2605.5,2605.4,16.123]
[1749082545669,1.78890288,2605.5,2605.4,9.886]
[1749082545866,1.78890288,2605.5,2605.4,16.123]
[1749082547738,1.78890288,2605.5,2605.4,9.886]
[1749082548251,1.78890288,2605.5,2605.4,16.122]
[1749082549953,1.78890288,2605.5,2605.4,9.886]
[1749082549954,2.33890288,2605.5,2605.4,9.886]
[1749082550157,1.01820288,2605.5,2605.4,9.886]
[1749082550328,0.55,2605.4,2603.9,30.0]
[1749082550530,3.36132882,2604.8,2604.2,30.0]
[1749082550840,4.64732882,2604.8,2604.2,30.0]
[1749082551831,3.36132882,2604.6,2603.9,24.52012]
[1749082552033,1.3462,2604.5,2604.1,10.385767]
[1749082552233,1.3462,2604.5,2604.1,6.785767]
[1749082552434,1.3462,2604.5,2604.2,3.6]
[1749082552631,1.3462,2604.5,2604.0,6.237]
[1749082552893,1.3462,2604.5,2604.1,4.989767]
[1749082553092,3.36132882,2604.2,2603.6,30.0]
[1749082553247,3.36132882,2604.4,2604.2,6.237]
[1749082554548,1.2661,2604.3,2603.9,10.0]
[1749082554877,1.2661,2604.3,2604.0,6.237]
[1749082555238,1.2661,2604.3,2604.1,9.889]
[1749082556842,1.3037,2604.6,2604.2,7.730001]
[1749082557036,1.3037,2604.6,2604.4,10.0]
[1749082557276,1.3037,2604.6,2604.4,7.061003]
[1749082557581,1.3037,2604.6,2604.3,4.350075]
[1749082557943,1.3037,2604.6,2604.3,3.866269]
[1749082558146,1.3037,2604.6,2604.3,2.448]
[1749082558569,1.3037,2604.6,2604.3,10.0]
[1749082558782,1.2848,2604.8,2604.4,10.0]
[1749082559387,1.2848,2605.3,2604.6,30.0]
[1749082559682,1.2848,2605.3,2604.5,0.76788675]
[1749082559683,1.2848,2605.3,2604.8,14.468751]
[1749082559856,1.74941288,2605.3,2604.9,6.238]
[1749082560557,1.74941288,2605.3,2605.1,10.0]
[1749082560881,1.74941288,2605.3,2605.0,5.05526]
[1749082561087,1.2848,2605.3,2605.2,10.0]
[1749082561286,1.3286,2605.5,2605.0,10.0]
[1749082561473,0.0616,2605.4,2605.2,10.0]
[1749082561668,3.42292882,2605.4,2605.3,1.612]
[1749082563696,3.42292882,2605.4,2605.3,7.85]
[1749082563899,3.8980817,2605.4,2605.3,7.85]
[1749082564592,1.2826,2605.3,2604.3,22.616103]
[1749082564885,3.36132882,2605.0,2604.5,28.169252]
[1749082565048,3.36132882,2605.0,2604.5,26.258362]
[1749082565243,3.36132882,2605.2,2604.5,26.258362]
[1749082566554,1.2826,2605.3,2604.6,30.76785646]
[1749082566754,1.2826,2605.3,2604.7,25.689242]
[1749082567361,1.2826,2605.3,2604.8,28.560181]
[1749082567590,3.42292882,2605.4,2604.9,30.0]
[1749082567791,0.0616,2605.4,2605.1,40.0]
[1749082567981,0.0616,2605.4,2605.3,36.452625]
[1749082568184,0.0616,2605.4,2605.3,18.799299]
[1749082569398,0.0616,2605.4,2605.3,18.243742]
[1749082569583,0.0616,2605.4,2605.3,14.938042]
[1749082574077,0.0616,2605.4,2605.3,15.70570791]
[1749082574294,0.0616,2605.4,2605.3,14.938042]
[1749082576180,0.0616,2605.4,2605.3,15.70570791]
[1749082576365,0.0616,2605.4,2605.3,16.10405598]
[1749082576570,0.0616,2605.4,2605.3,14.38239156]
[1749082576872,0.0616,2605.4,2605.3,45.15005747]
[1749082580719,0.0616,2605.4,2605.3,35.07870856]
[1749082580877,0.0616,2605.4,2605.3,35.84637447]
[1749082581069,0.0616,2605.4,2605.3,35.07870856]
[1749082581728,0.0616,2605.4,2605.3,34.31459256]
[1749082581890,0.0616,2605.4,2605.3,40.54959256]
[1749082582825,0.0616,2605.4,2605.3,26.167201]
[1749082583185,0.0616,2605.4,2605.3,11.467306]
[1749082583407,0.0616,2605.4,2605.3,17.702306]
[1749082585617,0.0616,2605.4,2605.3,25.976306]
[1749082586917,0.0616,2605.4,2605.3,33.75075288]
[1749082587313,0.0616,2605.4,2605.3,50.985419]
[1749082587990,0.0020033,2605.4,2605.3,51.38376707]
[1749082588321,0.0020033,2605.4,2605.3,54.28203825]
[1749082588499,0.02,2605.9,2605.6,0.55]
[1749082588702,0.02,2605.9,2605.8,46.0]
[1749082589042,0.02,2605.9,2605.8,47.52823468]
[1749082589238,0.02,2605.9,2605.8,47.16586668]
[1749082589390,0.02,2605.9,2605.8,46.76751861]
[1749082593846,0.02,2605.9,2605.4,0.76761913]
[1749082593995,0.02,2605.9,2605.8,28.110228]
[1749082594195,0.02,2605.9,2605.8,44.110228]
[1749082595026,0.02,2605.9,2605.8,17.611]
[1749082595240,0.02,2605.9,2605.8,23.847]
[1749082595490,0.02,2605.9,2605.8,16.119]
[1749082595723,0.02,2605.9,2605.8,36.86392]
[1749082595919,0.02,2605.9,2605.8,35.41292]
[1749082596350,0.02,2605.9,2605.8,25.883]
[1749082596527,0.02,2605.9,2605.8,37.107372]
[1749082600196,0.02,2605.9,2605.8,30.872372]
[1749082600405,0.02,2605.9,2605.8,34.919372]
[1749082603937,0.02,2605.9,2605.8,8.272]
[1749082604111,0.48603288,2605.9,2605.8,9.883]
[1749082604315,0.48603288,2605.9,2605.8,16.117]
[1749082604933,0.48603288,2605.9,2605.8,8.272]
[1749082605236,0.02,2605.9,2605.8,38.630007]
[1749082606352,0.02,2605.9,2605.8,36.146737]
[1749082606551,0.02,2605.9,2605.8,32.117]
[1749082606762,3.8473617,2605.9,2605.8,25.883]
[1749082606963,3.8473617,2605.9,2605.8,32.117]
[1749082608242,3.8473617,2605.9,2605.8,25.883]
[1749082608564,3.8473617,2605.9,2605.8,32.117]
[1749082609276,3.8473617,2605.9,2605.8,8.272]
[1749082609574,5.0958617,2605.9,2605.8,16.117]
[1749082618578,0.02,2605.9,2605.8,16.117]
[1749082619339,0.02,2605.9,2605.8,29.19549]
[1749082619547,0.02,2605.9,2605.8,23.0607]
[1749082620094,0.02,2605.9,2605.8,39.82821861]
[1749082620400,0.02,2605.9,2605.8,40.1497127]
[1749082620550,0.02,2605.9,2605.8,39.82821861]
[1749082622172,0.02,2605.9,2605.8,25.17254586]
[1749082622370,0.02,2605.9,2605.8,55.17254586]
[1749082622596,0.00065767,2605.9,2605.8,55.17254586]
[1749082623334,0.00065767,2605.9,2605.8,61.40654586]
[1749082625879,0.00065767,2605.9,2605.8,61.35774586]
[1749082626080,0.00065767,2605.9,2605.8,44.98023825]
[1749082626382,0.00065767,2605.9,2605.8,30.59022725]
[1749082626784,0.00065767,2605.9,2605.8,47.06738125]
[1749082627178,0.00065767,2605.9,2605.8,35.18796725]
[1749082629275,0.00065767,2605.9,2605.8,28.95396725]
[1749082629472,0.00065767,2605.9,2605.8,35.18796725]
[1749082630722,0.00065767,2605.9,2605.8,32.87344325]
[1749082631174,0.00065767,2605.9,2605.8,33.36322725]
[1749082631381,0.00065767,2605.9,2605.8,33.59422725]
[1749082631695,1.35675767,2605.9,2605.8,24.35622725]
[1749082631884,1.35675767,2605.9,2605.8,34.49952725]
[1749082632082,1.35675767,2605.9,2605.8,30.59022725]
[1749082632315,1.35675767,2605.9,2605.8,24.35622725]
[1749082632619,1.35675767,2605.9,2605.8,30.59022725]
[1749082632775,1.82856632,2605.9,2605.8,24.35622725]
[1749082633113,1.82856632,2605.9,2605.8,30.59022725]
[1749082633289,1.82856632,2605.9,2605.8,24.35622725]
[1749082633485,1.82856632,2605.9,2605.8,30.59022725]
[1749082637808,1.82856632,2605.9,2605.8,16.118]
[1749082643927,1.82856632,2605.9,2605.8,32.118]
[1749082645443,1.82856632,2605.9,2605.8,9.884]
[1749082645671,1.82856632,2605.9,2605.8,16.118]
[1749082646554,1.82856632,2605.9,2605.8,9.884]
[1749082646710,1.82856632,2605.9,2605.8,16.118]
[1749082647429,2.37856632,2605.9,2605.8,9.884]
[1749082647610,2.37856632,2605.9,2605.8,16.118]
[1749082647811,2.37856632,2605.9,2605.8,9.884]
[1749082648312,2.37856632,2605.9,2605.8,16.118]
[1749082656958,0.55,2605.6,2604.4,16.0]
[1749082657177,3.36132882,2605.0,2604.6,16.0]
[1749082657596,1.3599,2605.5,2604.8,16.0]
[1749082657876,3.36132882,2605.3,2604.8,16.0]
[1749082658080,3.36132882,2605.3,2605.0,16.0]
[1749082658281,3.36132882,2605.3,2605.1,6.235]
[1749082658655,3.36132882,2605.5,2605.1,6.235]
[1749082659275,3.36132882,2605.5,2605.2,20.872031]
[1749082659478,3.36132882,2605.5,2605.2,13.097231]
[1749082659643,3.36132882,2605.5,2605.2,9.098332]
[1749082659842,3.36132882,2605.5,2605.3,6.235]
[1749082660044,3.36132882,2605.5,2604.7,10.0]
[1749082660246,3.36132882,2605.5,2604.9,40.0]
[1749082660538,3.36132882,2605.5,2604.9,30.0]
[1749082661000,3.36132882,2605.3,2605.0,6.235]
[1749082661306,0.33613288,2605.2,2605.0,6.235]
[1749082661515,3.36132882,2605.3,2605.0,6.235]
[1749082662796,3.36132882,2605.1,2605.0,6.235]
[1749082665366,3.36132882,2605.1,2605.0,16.121]
[1749082665776,3.36132882,2605.3,2605.0,16.121]
[1749082665982,3.36132882,2605.5,2605.2,10.0]
[1749082666313,3.36132882,2605.5,2605.0,16.121]
[1749082667089,3.36132882,2605.5,2605.2,10.0]
[1749082667297,3.36132882,2605.5,2605.1,2.486]
[1749082667604,3.36132882,2605.5,2605.0,16.121]
[1749082667605,3.36132882,2605.5,2605.2,10.0]
[1749082668012,3.36132882,2605.5,2605.2,9.316896]
[1749082668174,3.36132882,2605.5,2605.1,11.52088]
[1749082668574,3.36132882,2605.7,2605.1,11.52088]
[1749082671304,3.36198649,2605.9,2605.3,40.0]
[1749082671496,3.36198649,2605.9,2605.2,30.0]
[1749082672013,3.36198649,2605.9,2605.3,30.0]
[1749082672172,3.36198649,2605.9,2605.2,30.0]
[1749082672378,3.36198649,2605.9,2605.4,30.0]
[1749082672575,0.00065767,2605.9,2605.6,0.76756806]
[1749082672782,0.00065767,2605.9,2605.8,11.461849]
[1749082673006,0.00065767,2605.9,2605.8,6.020749]
[1749082673426,0.00065767,2605.9,2605.8,6.78826761]
[1749082673786,4.72932882,2606.7,2606.0,10.0]
[1749082673986,0.47293288,2606.6,2606.1,10.0]
[1749082674198,0.47293288,2606.6,2605.9,40.0]
[1749082674401,4.72932882,2606.7,2605.9,30.0]
[1749082674717,3.36132882,2606.5,2605.9,30.0]
[1749082674876,3.36132882,2606.5,2606.0,30.0]
[1749082676019,3.36132882,2606.5,2605.9,30.0]
[1749082677022,3.36132882,2606.5,2606.1,10.0]
[1749082677221,3.36132882,2606.5,2606.0,6.234]
[1749082680207,3.36132882,2606.5,2606.0,16.0]
[1749082680832,3.36132882,2606.5,2605.8,30.0]
[1749082681394,4.69082882,2606.0,2605.7,1.611]
[1749082681594,3.36132882,2605.8,2605.7,1.611]
[1749082681893,4.75792882,2605.8,2605.7,7.844]
[1749082684129,1.3115,2606.3,2605.7,7.844]
[1749082684334,3.36132882,2605.9,2605.7,7.844]
[1749082685317,3.36132882,2606.1,2605.8,5.982652]
[1749082685518,3.36132882,2606.1,2605.9,10.0]
[1749082686410,1.3115,2606.3,2605.9,16.0]
[1749082686613,3.36132882,2606.4,2605.9,16.0]
[1749082686803,3.36132882,2606.4,2605.9,10.223041]
[1749082688039,3.36132882,2606.4,2605.8,16.0]
[1749082688216,3.36132882,2606.4,2605.9,18.011396]
[1749082688735,1.3808,2606.8,2605.9,18.011396]
[1749082688962,3.36132882,2606.7,2606.2,16.0]
[1749082689162,3.36132882,2606.5,2606.3,9.883]
[1749082689443,0.0392,2606.0,2605.9,46.76748609]
[1749082689647,0.0392,2606.0,2605.9,56.65048609]
[1749082689851,0.0392,2606.0,2605.9,25.883]
[1749082690004,0.0392,2606.0,2605.9,41.574671]
[1749082690198,0.0392,2606.0,2605.9,38.678671]
[1749082690424,0.0392,2606.0,2605.9,25.883]
[1749082690627,0.0392,2606.0,2605.9,32.116]
[1749082691437,0.0392,2606.0,2605.9,24.273]
[1749082691739,0.0392,2606.0,2605.9,32.116]
[1749082692801,0.0392,2606.0,2605.9,25.883]
[1749082693000,0.37925288,2606.0,2605.9,32.116]
[1749082693231,0.0392,2606.0,2605.9,32.116]
[1749082694739,0.0392,2606.0,2605.9,40.655645]
[1749082694943,0.0392,2606.0,2605.9,37.741424]
[1749082696338,0.0392,2606.0,2605.9,32.116]
[1749082696654,0.0392,2606.0,2605.9,37.566839]
[1749082696814,0.0392,2606.0,2605.9,36.317243]
[1749082697756,0.0392,2606.0,2605.9,35.805243]
[1749082699828,0.0392,2606.0,2605.9,32.116]
[1749082700143,3.7405817,2606.0,2605.9,9.883]
[1749082700344,5.1887817,2606.0,2605.9,9.883]
[1749082700881,5.7387817,2606.0,2605.9,16.116]
[1749082701029,5.7387817,2606.0,2605.9,9.883]
[1749082701372,5.7387817,2606.0,2605.9,16.116]
[1749082703533,5.7387817,2606.0,2605.9,9.883]
[1749082703732,5.7387817,2606.0,2605.9,16.116]
[1749082704537,2.37745288,2606.0,2605.9,16.116]
[1749082705845,5.7387817,2606.0,2605.9,16.116]
[1749082707379,1.82745288,2606.0,2605.9,16.116]
[1749082707537,4.84872882,2606.0,2605.9,16.116]
[1749082708782,0.0392,2606.0,2605.9,16.116]
[1749082709283,0.0392,2606.0,2605.9,32.116]
[1749082716997,0.0392,2606.0,2605.9,59.41852415]
[1749082717186,0.0392,2606.0,2605.9,58.651035]
[1749082719265,0.0392,2606.0,2605.9,59.41852415]
[1749082719648,0.00117315,2606.0,2605.9,59.41852415]
[1749082720593,0.00117315,2606.0,2605.9,58.651035]
[1749082721718,0.00117315,2606.0,2605.9,25.883]
[1749082721927,0.00117315,2606.0,2605.9,32.126]
[1749082722070,0.00117315,2606.0,2605.9,16.133]
[1749082722271,0.00117315,2606.0,2605.9,9.89]
[1749082722505,1.70572335,2606.0,2605.9,16.135]
[1749082722772,5.06705217,2606.0,2605.9,16.135]